Cogmind - Beta 15 @@@ ROGUE MODE // 2025.06.18 @ 16:46:07 Player: puppuppit Result: Destroyed by Autobeam Turret with Autobeam Performance ------------- Evolutions (0) 0 Regions Visited (3) 600 Robots Destroyed (44) 220 Value Destroyed (827) 827 Prototype IDs (12) 240 Alien Tech Used (0) 0 Bonus (190) 190 TOTAL SCORE: 2077 Bonus ------- Follower Combat Kills 190 Cogmind --------- Core Integrity 0/250 Matter 146/300 Energy 200/200 System Corruption 0% Temperature Cool (18) Movement Rolling (95) Location -10/Subcaves Parts ------- > --- POWER (1) -------- Subdweller Power Source > --- PROPULSION (2) --- Wheel Subdweller Monowheel > --- UTILITY (2) ------ Large Storage Unit Core Shielding > --- WEAPON (2) ------- Subdweller Machine Gun > --- INVENTORY (15) --- Subdweller Power Source Wheel Medium Matter Pod (100) High-capacity Matter Pod (200) Subdweller Optics Improved Terrain Scanner Gun Armor Makeshift System Shield Thief Drone Bay (2/3) Beamcaster Subdweller Machine Gun Subdweller Machine Gun Subdweller Machine Gun Subdweller Machine Gun Multitool Peak State ------------ > --- POWER ------------ Nuclear Core > --- PROPULSION ------- Light Treads Light Treads > --- UTILITY ---------- Large Storage Unit Thief Drone Bay > --- WEAPON ----------- Beamcaster Missile Launcher > --- INVENTORY -------- Subdweller Power Source Deuterium Engine Wheel Wheel Medium Matter Pod Medium Matter Pod Subdweller Optics Improved Terrain Scanner Improved Terrain Scanner Core Shielding Improved Propulsion Shielding Gun Armor Assault Rifle Light Assault Rifle [Rating: 24] Favorites ----------- Power Nuclear Core Engine Ion Engine Power Core Nuclear Core Propulsion Light Treads Treads Light Treads Wheel Subdweller Monowheel Utility Large Storage Unit Device Improved Terrain Scanner Storage Large Storage Unit Protection Core Shielding Weapon Beamcaster Energy Gun Beamcaster Energy Cannon Subdweller Beam Cannon Ballistic Gun Assault Rifle Launcher Missile Launcher Build | -11 -10 -10 -10 ------- Run | Yrd Mat Min Sub Slots Evolved . | . . . . Power . | . . . . Propulsion . | . . . . Utility . | . . . . Weapon . | . . . . Parts Attached 23 | 6 4 5 8 Power 4 | 1 . 1 2 Engine 3 | 1 . . 2 Core 1 | . . 1 . Reactor . | . . . . Propulsion 5 | 2 . . 3 Treads 3 | 2 . . 1 Leg . | . . . . Wheel 2 | . . . 2 Hover . | . . . . Flight . | . . . . Utility 7 | 1 3 2 1 Device 3 | . . 2 1 Storage 2 | 1 1 . . Processor . | . . . . Hackware . | . . . . Protection 2 | . 2 . . Artifact . | . . . . Weapon 7 | 2 1 2 2 Energy Gun 2 | 1 . 1 . Energy Cannon 1 | . . . 1 Ballistic Gun 3 | 1 1 . 1 Ballistic Cannon . | . . . . Launcher 1 | . . 1 . Special Weapon . | . . . . Impact Weapon . | . . . . Slashing Weapon . | . . . . Piercing Weapon . | . . . . Special Melee Weapon . | . . . . Unidentified Prototypes 1 | . . 1 . Parts Lost 3 | . . . 3 Power 1 | . . . 1 Propulsion 1 | . . . 1 Utility . | . . . . Weapon 1 | . . . 1 Highest Loss Streak 2 | . . . 2 To Critical Strikes . | . . . . Average Backups 13 | . 9 14 14 Power . | . . . 1 Propulsion 1 | . 1 2 2 Utility 5 | . 3 5 6 Weapon 4 | . 3 6 4 Tool/Special . | . . . . Unused Backups 25 | . . 5 20 Power 1 | . . . 1 Propulsion 2 | . . 1 1 Utility 9 | . . 2 7 Weapon 12 | . . 2 10 Tool/Special 1 | . . . 1 Average Slot Usage (%) 99 | . 98 100 99 Engine 4 | . 14 5 1 Core 9 | . . 8 12 Treads 26 | . 28 28 26 Device 8 | . . 3 13 Storage 14 | . 14 14 14 Protection 4 | . 12 10 . Energy Gun 10 | . 2 7 13 Ballistic Gun 14 | . 25 20 8 Launcher 2 | . . . 4 Peak Build Rating 24 | 6 8 21 24 Average Rating 15 | 5 7 12 19 On Entrance 7 | . 6 8 17 Naked Turns . | . . . . Heaviest Build 44 | 13 29 35 44 Greatest Support 40 | 40 40 40 40 Greatest Overweight (x) 1 | . . . 1 Average Overweight (x) . | . . . . Largest Inventory Capacity 15 | 8 15 15 15 Average Capacity 14 | 7 12 15 15 Most Carried 15 | 1 14 15 15 Average Carried 13 | . 9 14 14 Final Capacity 15 | 8 15 15 15 Final Carried 15 | 1 14 15 15 Class Distribution -------------------- 100% | Mutant Dominant Class ---------------- Mutant | -10/Materials Mutant | -10/Mines Mutant | -10/Subcaves Resources | -11 -10 -10 -10 ----------- Run | Yrd Mat Min Sub Matter Collected 1400 | 371 200 165 664 Remotely . | . . . . Salvage Created 1208 | 192 381 191 444 Parts 83 | 7 27 16 33 Haulers Intercepted 1 | . 1 . . Recyclers Shooed . | . . . . Parts Field Recycled . | . . . . Retrieved Matter . | . . . . Parts Self-Destructed 10 | . . . 10 Prevented . | . . . . Kills | -11 -10 -10 -10 ------- Run | Yrd Mat Min Sub Combat Hostiles Destroyed 28 | . 4 7 17 Guns 16 | . 4 6 6 Cannons 1 | . . . 1 AOE 11 | . . 1 10 Classes Destroyed 9 | 3 5 . 1 Worker 6 | 2 4 . . Tunneler 5 | 3 1 1 . Hauler 1 | . 1 . . Recycler 2 | 1 1 . . Mechanic 1 | . 1 . . Watcher 1 | . 1 . . Swarmer 12 | . 3 3 6 Grunt 5 | . 1 4 . Subdweller 11 | . . . 11 Best Kill Streak 6 | 6 3 3 4 Combat Bots Only 4 | . 3 3 4 Max Kills in Single Turn 3 | 1 1 1 3 Gunslinging . | . . . . Exploded 3 | . . 1 3 Melee . | . . . . Uniques/NPCs Destroyed . | . . . . Combat | -11 -10 -10 -10 -------- Run | Yrd Mat Min Sub Hostile Shots Fired 120 | . 26 25 69 Missed 37 | . 7 9 21 Hits 83 | . 19 16 48 Projectile 83 | . 19 16 48 Critical Strikes 2 | . . . 2 Damage Taken 1129 | . 170 163 796 Core 253 | . 32 34 187 Absorbed by Shields . | . . . . Redirected to Shielding 16 | . 7 7 2 Core Remaining (%) 100 | 100 . . . Volleys Fired 125 | 19 42 17 47 Largest 2 | 2 2 2 2 Hottest 155 | 70 70 111 155 Shots Fired 232 | 38 84 34 76 Gun 206 | 38 84 32 52 Cannon 7 | . . . 7 Launcher 19 | . . 2 17 Special . | . . . . Kinetic 139 | 19 76 28 16 Thermal 74 | 19 8 4 43 Explosive 19 | . . 2 17 Electromagnetic . | . . . . Robot Hit Streak 14 | 10 8 11 14 Robot Miss Streak 7 | 1 7 3 4 Penetration Max . | . . . . Secondary Targets 2 | . . 2 . Max Gunslinging Chain 1 | . . 1 . Shots Hit Robots 134 | 25 45 19 45 Core Hits 66 | 7 23 11 25 Critical Kills . | . . . . Critical Parts Destroyed . | . . . . Critical Strikes 5 | 1 . . 4 Burn 5 | 1 . . 4 Melee Attacks . | . . . . Impact . | . . . . Slashing . | . . . . Piercing . | . . . . Sneak Attacks . | . . . . Combat Hostiles . | . . . . Follow-up Attacks . | . . . . Damage Inflicted 3139 | 277 511 376 1975 Guns 1660 | 277 511 188 684 Cannons 196 | . . . 196 Explosions 1283 | . . 188 1095 Melee . | . . . . Ramming . | . . . . Kinetic 884 | 102 421 167 194 Thermal 972 | 175 90 21 686 Explosive 1283 | . . 188 1095 Electromagnetic . | . . . . Impact . | . . . . Slashing . | . . . . Piercing . | . . . . Highest Corruption . | . . . . Average Corruption . | . . . . Corruption Purged . | . . . . Corruption Blocked . | . . . . Overload Shots . | . . . . Overflow Damage 18 | . . . 18 Projectiles . | . . . . Explosions 18 | . . . 18 Melee . | . . . . Knockbacks . | . . . . Impact . | . . . . Kinetic . | . . . . Secondary . | . . . . Self-Inflicted Damage 109 | . . . 109 Shots 3 | . . . 3 Rammed . | . . . . Targets Rammed . | . . . . Kicked . | . . . . Crushed . | . . . . Highest Temperature 138 | 100 80 138 117 Average Temperature 36 | 35 25 49 37 Received Heat Transfer 237 | . 48 51 138 Siege Activations . | . . . . Martial Activations . | . . . . Shielding Activations . | . . . . Robots Disrupted . | . . . . Combat Hostiles . | . . . . Robots Corrupted . | . . . . Combat Hostiles . | . . . . Parts Fried . | . . . . Impact Corruptions . | . . . . Robots Melted . | . . . . Combat Hostiles . | . . . . Parts Melted 3 | 2 . . 1 Heat Transferred 2294 | 592 259 37 1406 Parts Sabotaged . | . . . . Parts Stolen . | . . . . Parts Stripped . | . . . . Power Chain Reactions . | . . . . Alert | -11 -10 -10 -10 ------- Run | Yrd Mat Min Sub Maximum Alert Level . | . . . . Low Security (%) 100 | 100 100 100 . Level 1 . | . . . . Level 2 . | . . . . Level 3 . | . . . . Level 4 . | . . . . Level 5 . | . . . . High Security . | . . . . Max Security . | . . . . Peak Influence 81 | 15 70 81 . Initial . | . . . . Average 15 | 3 14 19 . Influence Increases 609 | 30 179 196 204 Destroy 0b10 Robot/C 380 | . 80 140 160 Destroy 0b10 Robot/NC 80 | 30 45 5 . Destroy Leader 64 | . 24 30 10 Allied During Kill 4 | . . . 4 Destroy Structure 21 | . . 21 . Lose Combat Pursuer 60 | . 30 . 30 Influence Decreases 487 | 30 179 196 82 Time Decay 447 | 30 179 196 42 Lost Part 20 | . . . 20 Lost Ally 20 | . . . 20 Squads Dispatched 2 | . 1 1 . Investigation 1 | . . 1 . Extermination . | . . . . Reinforcement 1 | . 1 . . Assault . | . . . . Garrison . | . . . . Intercept . | . . . . Searches Triggered . | . . . . Construction Impeded . | . . . . Haulers Reinforced . | . . . . Active Scanning Responses . | . . . . Cargo Convoy Interrupts . | . . . . Stealth | -11 -10 -10 -10 --------- Run | Yrd Mat Min Sub Distress Signals 2 | . 2 . . Communications Jammed . | . . . . Distress Signals . | . . . . Times Spotted 52 | . 15 8 29 Peak Tracking Total 5 | . 4 3 5 Tactical Retreats 2 | . 1 . 1 Traps | -11 -10 -10 -10 ------- Run | Yrd Mat Min Sub Traps Triggered . | . . . . Indirectly . | . . . . Trap Hack Attempts . | . . . . Triggered . | . . . . Disarmed . | . . . . Reprogrammed . | . . . . Reused . | . . . . Traps Extracted . | . . . . Installed . | . . . . Triggered . | . . . . Machines | -11 -10 -10 -10 ---------- Run | Yrd Mat Min Sub Machines Disabled 2 | . . . 2 Max in Single Turn 1 | . . . 1 Machines Repaired . | . . . . Machines Dismantled . | . . . . Machines Sabotaged . | . . . . Overloaded Fab Kills . | . . . . Hacking | -11 -10 -10 -10 --------- Run | Yrd Mat Min Sub Machines Accessed 3 | . . 2 1 Terminals . | . . . . Fabricators . | . . . . Repair Stations . | . . . . Recycling Units . | . . . . Scanalyzers . | . . . . Garrison Access . | . . . . Total Hacks 3 | . . 2 1 Successful 3 | . . 2 1 Failed . | . . . . Catastrophic . | . . . . Database Lockouts . | . . . . Manual . | . . . . Terminals . | . . . . Fabricators . | . . . . Repair Stations . | . . . . Recycling Units . | . . . . Scanalyzers . | . . . . Garrison Access . | . . . . Terminal Hacks 3 | . . 2 1 Open Door 2 | . . 2 . Proto ID Catalog 1 | . . . 1 Fabricator Hacks . | . . . . Repair Station Hacks . | . . . . Recycling Unit Hacks . | . . . . Scanalyzer . | . . . . Garrison Access Hacks . | . . . . Unauthorized Hacks . | . . . . Terminals . | . . . . Fabricators . | . . . . Repair Stations . | . . . . Recycling Units . | . . . . Scanalyzers . | . . . . Garrison Access . | . . . . Data Cores Recovered . | . . . . Used . | . . . . Hacking Detections . | . . . . Full Trace Events . | . . . . Feedback Events . | . . . . Feedback Blocked . | . . . . Robot Schematics Acquired . | . . . . Robots Built . | . . . . Authchips . | . . . . Time . | . . . . Total Robot Build Rating . | . . . . Part Schematics Acquired . | . . . . Parts Built . | . . . . Authchips . | . . . . Time . | . . . . Total Part Build Rating . | . . . . Parts Repaired . | . . . . Time . | . . . . Parts Recycled . | . . . . Recycled Matter . | . . . . Retrieved Matter . | . . . . Retrieved Components . | . . . . Parts Scanalyzed . | . . . . Part Schematics Acquired . | . . . . Parts Damaged . | . . . . Bothacking | -11 -10 -10 -10 ------------ Run | Yrd Mat Min Sub Used RIF Installer . | . . . . Robots Hacked . | . . . . Non-combat . | . . . . Combat . | . . . . Robot Hacks Applied . | . . . . Relay Couplers Released . | . . . . Fabnet Peak Effective % . | . . . . Robots Rewired . | . . . . Allies Hacked . | . . . . Hacks Repelled . | . . . . Allies | -11 -10 -10 -10 -------- Run | Yrd Mat Min Sub Total Allies 2 | . . 2 . Largest Group 2 | . . 2 2 Highest-Rated Group 45 | . . 41 45 Highest-Rated Ally 31 | . . 31 31 Total Orders 7 | . . . 7 RETURN 7 | . . . 7 Ally Attacks 68 | . . . 68 Total Damage 530 | . . . 530 Kills 7 | . . . 7 Allies Corrupted . | . . . . Allies Melted . | . . . . Intel | -11 -10 -10 -10 ------- Run | Yrd Mat Min Sub Active Infowar (turns) 2029 | . . 168 1861 Terrain 2029 | . . 168 1861 Robot Analysis Total . | . . . . Derelict Logs Recovered 1 | . . . 1 Drone Launches 27 | . . . 27 Drone Recoveries 26 | . . . 26 Exploration | -11 -10 -10 -10 ------------- Run | Yrd Mat Min Sub Turns Passed 3780 | 149 673 735 2223 Spaces Moved 2018 | 55 313 410 1240 Core 1 | 1 . . . Treads 1928 | 54 313 410 1151 Legs . | . . . . Wheels 89 | . . . 89 Hover . | . . . . Flight . | . . . . Fastest Speed 50 | 50 160 160 107 Average Speed 160 | 158 160 160 161 Slowest Speed 240 | 160 160 160 240 Overloaded Moves . | . . . . Propulsion Burnouts . | . . . . Robots Hopped . | . . . . Potential Cave-ins . | . . . . Cave-ins Triggered . | . . . . Exploration Rate (%) 48 | 5 51 75 64 Regions Visited 3 Branch Regions 2 Pre-discovered Areas . | . . . . Known Exits Taken . | . . . . Unknown Exits Taken 3 | 1 1 1 . Scrap Searched 8 | . . 1 7 Spaces Dug 23 | . . . 23 Terrain Destroyed 175 | . . 29 146 Melee . | . . . . Projectile 1 | . . . 1 AOE 174 | . . 29 145 Terrain Rammed . | . . . . Walls Destroyed . | . . . . Machines Disabled . | . . . . Actions | -11 -10 -10 -10 --------- Run | Yrd Mat Min Sub Total 2327 | 80 409 462 1376 Wait 59 | . 36 11 12 Move 2015 | 54 312 409 1240 Hop . | . . . . Pick Up 43 | 1 14 9 19 Fast Attach 8 | 6 . . 2 Attach 1 | . 1 . . Detach . | . . . . Swap 46 | . 3 7 36 Drop 30 | . 1 9 20 Fire 125 | 19 42 17 47 Melee . | . . . . Ram . | . . . . Kick . | . . . . Crush . | . . . . Escape Stasis . | . . . . Rewire . | . . . . Trap . | . . . . Miscellaneous . | . . . . Route ------- -11/Scrapyard -10/Materials (discovered 2 exits: [*Mat] / *Min) -10/Mines (discovered 2 exits: [*Mat] / *Sub) -10/Subcaves History --------- Turn | Location | Event 8 | -11/Scrapyard | Discovered new exit (range 14) 150 | -11/Scrapyard | Entered Materials 301 | -10/Materials | Build established: Mutant 424 | -10/Materials | Discovered new exit (range 15) 619 | -10/Materials | Discovered new exit (range 7) 823 | -10/Materials | Entered Mines 932 | -10/Mines | Deemed a non-threat by the Exiles lab entrance 1029 | -10/Mines | Discovered new exit (range 10) 1052 | -10/Mines | Met a Derelict shopkeep closing up shop 1276 | -10/Mines | Found the Drone Emporium 1281 | -10/Mines | Found Prototype Device 1281 | -10/Mines | Identified Thief Drone Bay 1538 | -10/Mines | Discovered new exit (range 6) 1558 | -10/Mines | Entered Subcaves 1558 | -10/Subcaves | Accompanied by 2 allies 1563 | -10/Subcaves | Led the pair of lost Derelicts to an unsafe place 1644 | -10/Subcaves | Shifting Twisted Machinery released Mak. Light Armor Plating 2055 | -10/Subcaves | Core integrity fell below 50% 2249 | -10/Subcaves | Learned Materials non-interactive machine intel 2445 | -10/Subcaves | Visited 4L-MR0's lab 2463 | -10/Subcaves | Found Gun Armor 2907 | -10/Subcaves | Disturbed a concealed Subdweller 2940 | -10/Subcaves | Disturbed a concealed Subdweller 2941 | -10/Subcaves | Disturbed a concealed Subdweller 2941 | -10/Subcaves | Disturbed a concealed Subdweller 3404 | -10/Subcaves | A swath of the cavern ceiling suddenly collapsed 3615 | -10/Subcaves | Core integrity fell below 20% 3619 | -10/Subcaves | Ambushed by Subdweller buried in earth 3781 | -10/Subcaves | Destroyed by Autobeam Turret with Autobeam Last Messages --------------- 03642_ The unstable cave ceiling collapses. 03644_ Thief Drone delivers Disposable Heat Sink. 03644_ Thief Drone retrieved by Thief Drone Bay (repair cost: 2). 03646_ J6-9XW(R) suffers critical hit (Burn). 03646_ Destroyed Scrap Shield. 03648_ The unstable cave ceiling collapses. 03649_ J6-9XW(R) destroyed. 03663_ The unstable cave ceiling collapses. 03666_ Acquired Sub. Monowheel. 03670_ Acquired Sub. Power Source. 03675_ Dropped Lgt. Treads. 03676_ Acquired Sub. Machine Gun. 03681_ Acquired 39 matter. 03683_ The unstable cave ceiling collapses. 03772_ Machine disabled. 03772_ S-10 Pest destroyed. 03781_ Destroyed Flight Unit. 03781_ S-10 Pest destroyed. 03781_ Missile Launcher destroyed. Map ----- +----------------------------------------------------+ | ??????????????????????????#?#????????????????????? | | ????????????????#????????????????????????????????? | | ?????????????????????????????????????????????????? | | ?????????????????????????????????????????????????? | | ?????????????????????????????????????????????????? | | ?????????????????????????????????????????????????? | | ?????????????????????????????????????????????????? | | ????????#????????????????????????????????????????? | | ????????????????????????#######??????????????????? | | ?????????????????????#### ##????""#??????????? | | #???????????#????????#"" #?? "#???#??????? | | ##????????????????????# # "#??????????? | | #????????????????????#% ?????????????? | | ##????????????????????# ? ????????????? | | ##????????#???????????#%! #??? t""???????????? | | #?????#???????????????## #??# ????????????? | | ######?????????????????##" #### ????????????? | | ### ##????????#??#????##"" ""???#????????? | | #??????????#?????# " ##????????????? | | #????????#?????###"" #????????????? | | #??????????????# ##???????????? | | ##??????????????# #???????????? | | #?#??????#??????# # % #???????????? | | # #?#????#?#??????# *= #????????????? | | ## ##??????????##??## *% #?#??????????? | | ## ##????#????????## @ #?#####??????? | | ### #????#????#????### #???# ###????? | | # ##?#??#?#??#??????#### #### ??? ?? | | ##????#????????###?#?# ^### #????????? | | ##???#???##??????????# #????????? | | ###????????????????# ## #????#???? | | ####??#?????#??????## #### #????#???? | | ## #?????#?????##???###### ^ ##????????? | | # ### ##???????#???#?#???### ####??#??????? | | # #### ###????#???####?????# ##?#?#????????? | | #### ###?#?###### ##?#?### ##?#??????#????? | | ## # #?#?## #??#### ##??#?#????????? | | # # # ##???## #### ## ###???????????? | | ####?# ### ##?#???????????? | | = ###?##### ## ##??????????????? | | # ! & ##??#?## ##??????????????? | | ## # ######## ####???????????? | | #### # # # #???### ##??????????? | | ## ## #### #???#?## ##???????????? | | ##### ##?##### ## ##??????#????? | | #### #### ### ####??#?????? | | ## ### ##?## #????????? | | ### ## ##?#?# #????????? | | ## ##?## ## #??## ### #????????? | | ?# ##?#### #?# #??###???#????? | +----------------------------------------------------+ Best States ------------- Heat Dissipation 25 Energy Generation 15 Energy Capacity 275 Matter Stores 300 Matter Capacity 300 Sight Range 16 Terrain Scan Range 16 Terrain Scan Density 10 Core Shielding 20 Propulsion Shielding 33 Evasion (%) 40 Recoil Reduction 2 Item Schematics ----------------- None Robot Schematics ------------------ None Fabricated ------------ Nothing Repaired ---------- Nothing Alien Tech Used ----------------- None Achievements -------------- None Challenges ------------ None Game ------ Seed ReactionAccelerationBooster Manual? 0 Play Time 00:21:04 Cumulative 303.2 hours Start 2025.06.18 @ 16:27:01 End 2025.06.18 @ 16:46:07 Sessions 1 Manual Loads 0 Difficulty Rogue Special Mode None Game No. 192 Rogue 192 Adventurer 0 Explorer 0 Win Type - Total 4 Types 2/0/1/1/0/0/0/0/0/0 Lore% 82 Gallery% 70 Achievement% 67 Wizard Run 0 Options --------- Layout 2 ASCII 0 Keyboard 1 Movement Vi Keybinds 0 Fullscreen 1 Font 16/Tamsyn Map View 55x47 Zoom Use 0% Tactical HUD 1 Map Filters NONE Filters NONE Steam 0 RUN: 54341654-ba09-4d0f-92dc-1ba68a2da921